bitfinex-derivatives/quotes_SOLF0:USTF0_20250505
["timestamp","ask_amount","ask_price","bid_price","bid_amount"]
[1746449677522,6.925,144.4,144.37,6.9258]
[1746449677723,6.9254,144.39,144.37,6.9258]
[1746449679629,6.9251,144.4,144.37,6.9258]
[1746449679825,6.9251,144.4,144.38,6.9257]
[1746449680025,7.54230067,144.42,144.35,4.152]
[1746449680327,6.9249,144.4,144.37,6.926]
[1746449681421,6.9249,144.4,144.38,6.9257]
[1746449681627,6.9245,144.41,144.35,6.3116]
[1746449682928,6.9245,144.41,144.38,6.9255]
[1746449683127,6.9248,144.4,144.38,6.9255]
[1746449684224,6.9248,144.4,144.37,6.926]
[1746449684429,6.9248,144.4,144.35,6.3116]
[1746449685231,6.9245,144.41,144.35,6.3116]
[1746449686231,6.9245,144.41,144.39,6.9252]
[1746449687530,6.9241,144.42,144.39,6.9252]
[1746449687927,24.3,144.43,144.35,6.3116]
[1746449688431,6.9244,144.41,144.39,6.9252]
[1746449688733,24.3,144.43,144.39,6.9252]
[1746449689332,6.9245,144.41,144.39,6.9252]
[1746449690433,6.9245,144.41,144.38,6.9255]
[1746449691334,6.925,144.4,144.38,6.9255]
[1746449691536,24.3,144.43,144.37,6.926]
[1746449691926,6.9255,144.39,144.37,6.926]
[1746449692933,6.9251,144.4,144.37,6.926]
[1746449693133,24.3,144.43,144.37,6.926]
[1746449693433,24.3,144.43,144.38,6.9258]
[1746449694136,6.9251,144.4,144.38,6.9258]
[1746449695827,6.9251,144.4,144.37,6.926]
[1746449700238,6.9251,144.4,144.38,6.9255]
[1746449700536,6.9251,144.4,144.35,6.3116]
[1746449701238,6.9251,144.4,144.37,6.9259]
[1746449702236,6.9254,144.39,144.37,6.9259]
[1746449702435,24.3,144.43,144.38,6.9256]
[1746449702639,24.3,144.43,144.35,6.3116]
[1746449702934,6.9244,144.41,144.35,6.3116]
[1746449703536,6.9248,144.4,144.35,6.3116]
[1746449703737,24.3,144.43,144.35,6.3116]
[1746449704042,6.9242,144.42,144.35,6.3116]
[1746449704949,6.9244,144.41,144.38,6.9254]
[1746449705243,6.9244,144.41,144.35,6.3116]
[1746449706544,6.9248,144.4,144.38,6.9254]
[1746449707446,6.9246,144.41,144.39,6.9253]
[1746449709645,6.9241,144.42,144.39,6.9253]
[1746449710847,6.9244,144.41,144.39,6.9253]
[1746449712246,6.9241,144.42,144.39,6.9253]
[1746449712548,385.3623,144.46,144.38,25.28]
[1746449713043,6.9232,144.44,144.41,6.9239]
[1746449713247,24.28,144.46,144.38,25.28]
[1746449713436,6.9225,144.45,144.38,25.28]
[1746449713940,6.9225,144.45,144.42,6.9235]
[1746449714141,6.9222,144.46,144.38,32.82230067]
[1746449714647,6.9217,144.47,144.38,46.67380067]
[1746449715642,24.28,144.48,144.39,13.8504]
[1746449715949,24.28,144.51,144.41,7.54230067]
[1746449716146,6.9215,144.48,144.44,6.9224]
[1746449716345,6.9215,144.48,144.42,24.28]
[1746449716845,6.9208,144.49,144.45,6.922]
[1746449717046,6.9208,144.49,144.42,24.28]
[1746449717447,6.9211,144.48,144.45,6.9221]
[1746449718545,6.9211,144.48,144.46,6.9219]
[1746449718737,6.9208,144.49,144.46,6.9219]
[1746449720648,6.9208,144.49,144.42,24.28]
[1746449720649,6.9208,144.49,144.47,6.9214]
[1746449722244,24.28,144.51,144.42,24.28]
[1746449722546,2.0101,144.53,144.43,24.28]
[1746449723147,6.9194,144.52,144.49,6.9205]
[1746449723344,2.0101,144.53,144.47,24.28]
[1746449723646,24.28,144.54,144.47,24.28]
[1746449725446,6.9193,144.52,144.47,24.28]
[1746449726254,6.9193,144.52,144.49,6.9202]
[1746449728652,6.9188,144.53,144.5,6.92]
[1746449729049,24.28,144.54,144.5,6.92]
[1746449729350,31.1984,144.54,144.51,6.9194]
[1746449729850,31.1984,144.54,144.5,6.9198]
[1746449730052,6.9187,144.53,144.5,6.9198]
[1746449730552,31.1983,144.54,144.47,24.28]
[1746449730753,24.28,144.54,144.47,24.28]
[1746449731354,26.3725,144.57,144.47,24.28]
[1746449732064,26.3725,144.57,144.47,31.82230067]
[1746449732448,24.28,144.57,144.47,31.82230067]
[1746449732648,28.4077,144.6,144.47,31.82230067]
[1746449732955,6.9167,144.57,144.47,31.82230067]
[1746449734357,6.9167,144.57,144.53,6.9183]
[1746449734958,6.9167,144.57,144.52,24.28]
[1746449735257,6.9167,144.57,144.53,6.9183]
[1746449736953,7.54230067,144.55,144.41,1.20413142]
[1746449737163,7.54230067,144.52,144.42,24.26]
[1746449737455,6.9214,144.48,144.42,24.26]
[1746449737857,24.26,144.51,144.42,24.26]
[1746449738051,24.26,144.51,144.43,6.9231]
[1746449739253,24.26,144.51,144.42,31.1837]
[1746449739459,24.26,144.51,144.42,24.26]
[1746449739460,7.54230067,144.49,144.42,24.26]
[1746449739851,6.9228,144.45,144.42,31.1838]
[1746449740958,6.9222,144.46,144.43,6.9233]
[1746449741455,6.9216,144.47,144.44,6.9229]
[1746449741656,24.26,144.51,144.42,24.26]
[1746449742058,6.921,144.48,144.42,24.26]
[1746449742560,6.921,144.48,144.45,6.9221]
[1746449743058,6.9207,144.49,144.42,24.26]
[1746449743763,6.9207,144.49,144.45,6.922]
[1746449744561,6.921,144.48,144.44,6.9227]
[1746449745162,6.921,144.48,144.45,6.9224]
[1746449747064,6.921,144.48,144.46,6.9219]
[1746449747262,6.9207,144.49,144.46,6.9219]
[1746449747663,6.9211,144.48,144.46,6.9219]
[1746449748162,6.9211,144.48,144.45,6.9222]
[1746449748963,24.26,144.51,144.42,24.26]
[1746449749165,7.54230067,144.49,144.42,24.26]
[1746449749465,6.9222,144.46,144.42,24.26]
[1746449749761,6.9222,144.46,144.43,6.923]
[1746449750467,6.9222,144.46,144.44,6.9228]
[1746449750665,6.9216,144.47,144.42,24.26]
[1746449750865,24.26,144.51,144.42,24.26]
[1746449751166,6.9208,144.49,144.46,6.9217]
[1746449751463,24.26,144.51,144.46,6.9217]
[1746449751762,24.26,144.51,144.45,6.9222]
[1746449752165,6.9213,144.48,144.45,6.9222]
[1746449753560,6.9216,144.47,144.45,6.9222]
[1746449754260,6.9216,144.47,144.42,24.26]
[1746449754460,6.9216,144.47,144.44,6.9227]
[1746449754661,7.54230067,144.49,144.42,24.26]
[1746449755160,7.54230067,144.49,144.43,6.9233]
[1746449755366,7.54230067,144.49,144.42,24.26]
[1746449755560,24.26,144.51,144.45,6.9221]
[1746449755983,6.9214,144.48,144.45,6.9221]
[1746449757362,6.9216,144.47,144.45,6.9221]
[1746449757569,24.26,144.51,144.44,6.9226]
[1746449757960,6.9222,144.46,144.44,6.9226]
[1746449758978,6.9216,144.47,144.45,6.9224]
[1746449759164,6.9216,144.47,144.42,24.26]
[1746449759364,24.26,144.51,144.42,24.26]
[1746449759575,24.26,144.51,144.44,6.9227]
[1746449760171,6.9218,144.47,144.42,24.26]
[1746449760471,24.26,144.51,144.42,24.26]
[1746449760773,6.9222,144.46,144.42,24.26]
[1746449761572,6.9222,144.46,144.43,6.9229]
[1746449761873,6.9222,144.46,144.42,24.26]
[1746449762172,6.9222,144.46,144.43,6.9233]
[1746449762573,6.9222,144.46,144.42,24.26]
[1746449762777,6.9222,144.46,144.44,6.9227]
[1746449764675,6.9217,144.47,144.44,6.9227]
[1746449764875,6.9217,144.47,144.45,6.9223]
[1746449765571,6.9212,144.48,144.45,6.9223]
[1746449767370,6.9215,144.47,144.45,6.9223]
[1746449767677,6.9215,144.47,144.44,6.9227]
[1746449768784,6.9212,144.48,144.45,6.9224]
[1746449769378,6.9216,144.47,144.45,6.9224]
[1746449769573,6.9216,144.47,144.44,6.9227]
[1746449769774,24.26,144.51,144.42,24.26]
[1746449770083,6.9213,144.48,144.45,6.9222]
[1746449770380,24.26,144.51,144.45,6.9222]
[1746449770581,6.9214,144.48,144.45,6.9222]
[1746449771880,6.9214,144.48,144.45,7.9222]
[1746449773285,6.9214,144.48,144.46,6.9219]
[1746449773985,6.9214,144.48,144.45,7.9222]
[1746449774686,6.9214,144.48,144.46,6.9219]
[1746449775986,6.9207,144.49,144.46,6.9219]
[1746449776483,6.9201,144.5,144.45,1.0]
[1746449776688,24.26,144.51,144.45,1.0]
[1746449777590,31.1798,144.51,144.48,6.921]
[1746449777791,24.26,144.51,144.45,1.0]
[1746449778181,24.26,144.51,144.47,6.9212]
[1746449779000,6.9201,144.5,144.47,6.9212]
[1746449781398,6.9201,144.5,144.48,6.921]
[1746449781607,24.26,144.51,144.46,24.26]
[1746449781898,574.3681,144.54,144.49,6.9204]
[1746449782099,24.26,144.54,144.46,28.2251]
[1746449782300,24.26,144.54,144.47,2.1726]
[1746449782499,24.26,144.54,144.51,6.9193]
[1746449782999,24.26,144.54,144.49,6.9202]
[1746449783394,6.9188,144.53,144.49,6.9202]
[1746449783793,6.9188,144.53,144.5,6.92]
[1746449788606,6.9193,144.52,144.5,6.92]
[1746449791112,6.9188,144.53,144.5,6.92]
[1746449791403,6.9188,144.53,144.51,6.9194]
[1746449799116,31.1784,144.54,144.51,6.9194]
[1746449800915,6.9187,144.53,144.51,6.9194]
[1746449802016,31.1783,144.54,144.51,6.9194]
[1746449803015,31.1783,144.54,144.52,6.919]
[1746449803217,24.26,144.57,144.5,24.26]
[1746449803409,24.26,144.57,144.51,4.1366]
[1746449803611,2.0673,144.59,144.54,6.9178]
[1746449803817,6.9169,144.57,144.51,4.1366]
[1746449806017,6.9169,144.57,144.53,6.9181]
[1746449806817,6.9172,144.56,144.53,6.9181]
[1746449807620,6.9169,144.57,144.54,6.918]
[1746449808114,2.0673,144.59,144.54,6.918]
[1746449808311,6.9173,144.56,144.54,6.918]
[1746449808615,6.9173,144.56,144.53,6.9184]
[1746449815321,6.9169,144.57,144.53,6.9184]
[1746449815624,6.9169,144.57,144.54,6.9179]
[1746449818023,6.9158,144.59,144.56,6.917]
[1746449818323,26.3694,144.6,144.56,6.917]
[1746449818717,33.285,144.6,144.56,6.917]
[1746449819823,6.9159,144.59,144.56,6.917]
[1746449820021,26.3694,144.6,144.56,6.917]
[1746449820323,6.9165,144.58,144.55,6.9174]
[1746449820622,6.9165,144.58,144.54,24.26]
[1746449821124,6.9165,144.58,144.56,6.9169]
[1746449821317,6.916,144.59,144.54,24.26]
[1746449821626,26.3694,144.6,144.54,24.26]
[1746449822526,6.9162,144.58,144.56,6.9169]
[1746449822726,26.3694,144.6,144.56,6.9169]
[1746449823027,6.916,144.59,144.56,6.9169]
[1746449828132,6.9163,144.58,144.56,6.9169]
[1746449830032,6.9163,144.58,144.55,6.9174]
[1746449830629,6.9163,144.58,144.55,6.9175]
[1746449831932,6.9163,144.58,144.56,6.9171]
[1746449833336,24.26,144.6,144.54,24.26]
[1746449833735,6.9174,144.56,144.54,24.26]
[1746449834436,6.9174,144.56,144.55,1.0]
[1746449842939,6.9169,144.57,144.55,1.0]
[1746449843939,24.26,144.6,144.55,1.0]
[1746449844341,6.916,144.59,144.56,6.9168]
[1746449846035,24.26,144.6,144.56,6.9168]
[1746449846241,6.9162,144.58,144.56,6.9168]
[1746449846742,6.9162,144.58,144.55,7.9174]
[1746449849858,6.9169,144.57,144.55,1.0]
[1746449850159,24.26,144.6,144.55,1.0]
[1746449850651,6.9171,144.56,144.55,1.0]
[1746449851748,6.9189,144.53,144.5,24.24]
[1746449851949,6.9189,144.53,144.51,6.9193]
[1746449852348,6.9184,144.54,144.5,24.24]
[1746449852556,6.9184,144.54,144.51,6.9191]
[1746449853849,6.9179,144.55,144.52,6.9188]
[1746449854453,31.1574,144.56,144.53,6.9185]
[1746449855353,6.9174,144.56,144.53,6.9185]
[1746449856152,6.9176,144.55,144.53,6.9185]
[1746449858550,6.9174,144.56,144.53,6.9185]
[1746449861156,6.9177,144.55,144.53,6.9185]
[1746449864749,11.74269144,144.56,144.54,6.9181]
[1746449865851,4.82529144,144.58,144.54,6.9181]
[1746449866052,4.82529144,144.58,144.55,6.9176]
[1746449866556,6.9169,144.57,144.55,6.9176]
[1746449869760,11.74169144,144.58,144.56,6.9171]
[1746449870958,35.98129144,144.59,144.57,6.9167]
[1746449872858,11.74129144,144.59,144.57,6.9167]
[1746449873861,11.74129144,144.59,144.56,6.9169]
[1746449874859,11.74129144,144.59,144.57,6.9166]
[1746449875163,11.74129144,144.59,144.54,4.82529144]
[1746449875364,6.9162,144.58,144.56,6.9169]
[1746449881171,6.9167,144.57,144.55,6.9175]
[1746449882168,6.9163,144.58,144.55,6.9175]
[1746449882969,6.9163,144.58,144.56,6.9171]
[1746449883573,6.9164,144.58,144.55,6.9174]
[1746449884972,6.9164,144.58,144.56,6.9171]
[1746449886568,4.82529144,144.59,144.54,4.82529144]
[1746449887171,6.9162,144.58,144.56,6.9169]
[1746449887774,11.74129144,144.59,144.57,6.9167]
[1746449889276,6.9154,144.6,144.58,6.9162]
[1746449889978,4.82529144,144.61,144.54,4.82529144]
[1746449890974,6.916,144.59,144.57,6.9166]
[1746449892077,6.9155,144.6,144.58,6.9162]
[1746449892977,11.74029144,144.61,144.59,6.9157]
[1746449893176,11.74029144,144.61,144.56,4.82529144]
[1746449893378,4.82529144,144.61,144.56,4.82529144]
[1746449893780,31.1545,144.62,144.56,4.82529144]
[1746449893978,6.9145,144.62,144.56,4.82529144]
[1746449894174,6.9145,144.62,144.57,24.24]
[1746449894679,6.9145,144.62,144.59,6.9153]
[1746449895081,6.915,144.61,144.59,6.9153]
[1746449896577,6.9145,144.62,144.59,6.9153]
[1746449897981,6.9145,144.62,144.6,6.9152]
[1746449899183,6.9148,144.61,144.59,6.9155]
[1746449901781,6.9145,144.62,144.6,6.9152]
[1746449903382,6.9145,144.62,144.59,6.9155]
[1746449904285,6.9149,144.61,144.59,6.9155]
[1746449907385,4.82529144,144.63,144.57,25.24]
[1746449907386,6.9146,144.62,144.6,6.9152]
[1746449909384,6.9146,144.62,144.59,6.9155]
[1746449910193,6.9149,144.61,144.59,6.9155]
[1746449913599,6.9145,144.62,144.59,6.9155]
[1746449913808,29.06529144,144.65,144.6,6.9152]
[1746449914104,29.06529144,144.65,144.58,4.82529144]
[1746449914304,6.914,144.63,144.6,6.9148]
[1746449915100,6.9143,144.62,144.6,6.9148]
[1746449915906,6.9148,144.61,144.58,4.82529144]
[1746449917008,6.9148,144.61,144.58,11.74099144]
[1746449917210,6.9148,144.61,144.58,4.82529144]
[1746449918110,6.9145,144.62,144.59,6.9155]
[1746449918506,6.9145,144.62,144.58,4.82529144]
[1746449918704,6.9145,144.62,144.59,6.9156]
[1746449919210,6.9145,144.62,144.6,6.9152]
[1746449920110,4.82529144,144.63,144.57,25.24]
[1746449920614,6.9156,144.6,144.58,6.916]
[1746449921213,6.915,144.61,144.59,6.9156]
[1746449921413,4.82529144,144.63,144.57,30.06529144]
[1746449921613,29.06529144,144.65,144.57,30.06529144]
[1746449922613,6.9146,144.62,144.59,6.9153]
[1746449922910,6.9146,144.62,144.57,30.06529144]
[1746449923115,6.9146,144.62,144.6,6.9152]
[1746449923415,6.9146,144.62,144.57,30.06529144]
[1746449923814,6.9148,144.61,144.59,6.9155]
[1746449924810,6.9148,144.61,144.58,6.9159]
[1746449925013,4.82529144,144.63,144.58,6.9159]
[1746449925211,4.82529144,144.63,144.57,30.06529144]
[1746449926716,6.9151,144.61,144.58,6.9158]
[1746449928718,6.9153,144.6,144.58,6.9158]
[1746449931420,6.915,144.61,144.58,6.9158]
[1746449931821,6.915,144.61,144.59,6.9157]
[1746449932622,6.915,144.61,144.58,6.916]
[1746449933019,6.915,144.61,144.57,30.06529144]
[1746449933321,6.915,144.61,144.58,6.9161]
[1746449933515,6.9153,144.6,144.58,6.9161]
[1746449933714,4.82529144,144.63,144.57,30.06529144]
[1746449934618,6.9152,144.61,144.58,6.9159]
[1746449935721,6.9154,144.6,144.58,6.9159]
[1746449936320,6.915,144.61,144.58,6.9159]
[1746449936517,6.915,144.61,144.59,6.9157]
[1746449936921,6.9144,144.62,144.59,6.9157]
[1746449937618,6.9149,144.61,144.59,6.9157]
[1746449937923,6.9149,144.61,144.58,6.916]
[1746449938327,6.9149,144.61,144.57,30.06529144]
[1746449939318,6.9142,144.63,144.57,30.06529144]
[1746449939522,24.22,144.64,144.57,30.06529144]
[1746449939523,24.22,144.64,144.58,4.82002499]
[1746449940423,24.22,144.64,144.59,4.81949377]
[1746449940723,35.32602619,144.67,144.6,4.81882619]
[1746449941022,6.9137,144.64,144.61,6.9145]
[1746449945926,6.9138,144.63,144.61,6.9145]
[1746449948432,6.9135,144.64,144.61,6.9145]
[1746449951630,6.9135,144.64,144.62,6.9143]
[1746449951830,6.9135,144.64,144.6,4.81882619]
[1746449952332,6.9131,144.65,144.62,6.9142]
[1746449952625,29.03882619,144.67,144.61,24.2]
[1746449953528,35.95102619,144.67,144.64,6.9131]
[1746449953731,29.03882619,144.67,144.62,4.81882619]
[1746449954628,29.03882619,144.67,144.63,6.9135]
[1746449954629,6.9127,144.66,144.63,6.9135]
[1746449954831,29.03882619,144.67,144.63,6.9135]
[1746449955333,6.9129,144.65,144.63,6.9135]
[1746449956728,6.9129,144.65,144.62,6.914]
[1746449957035,29.03882619,144.67,144.61,24.2]
[1746449957333,29.03882619,144.67,144.61,31.1145]
[1746449959234,6.9137,144.64,144.62,6.9143]
[1746449959930,29.03882619,144.67,144.61,25.2]
[1746449960431,6.9126,144.66,144.64,6.9131]
[1746449960933,6.9128,144.65,144.63,6.9136]
[1746449962634,6.9128,144.65,144.62,6.914]
[1746449963332,6.9135,144.64,144.62,6.914]
[1746449964734,6.9139,144.63,144.61,32.1145]
[1746449965134,29.03882619,144.67,144.61,32.1145]
[1746449965634,6.9135,144.64,144.62,6.9143]
[1746449968337,6.9131,144.65,144.62,6.9143]
[1746449969742,6.9131,144.65,144.63,6.9137]
[1746449971237,6.9131,144.65,144.62,6.9141]
[1746449974541,6.9133,144.64,144.62,6.9141]
[1746449975139,6.9126,144.66,144.64,6.9133]
[1746449975740,6.9126,144.66,144.63,6.9136]
[1746449977041,29.03882619,144.67,144.62,6.914]
[1746449978135,29.03882619,144.67,144.63,6.9138]
[1746449978341,29.03882619,144.67,144.61,30.01882619]
[1746449978640,6.9133,144.64,144.62,6.9141]
[1746449979341,6.9138,144.63,144.61,32.1145]
[1746449980543,24.22,144.67,144.62,6.9143]
[1746449980739,29.03882619,144.67,144.62,6.9143]
[1746449981037,6.9134,144.64,144.62,6.9143]
[1746449981241,6.9134,144.64,144.61,32.1145]
[1746449981746,6.9134,144.64,144.62,6.9142]
[1746449982041,6.9139,144.63,144.61,25.2]
[1746449982245,29.03882619,144.67,144.61,25.2]
[1746449982440,29.03882619,144.67,144.61,32.1143]
[1746449982638,6.9135,144.64,144.61,25.2]
[1746449983044,6.9135,144.64,144.62,6.914]
[1746449983445,6.9131,144.65,144.62,6.914]
[1746449985145,6.9126,144.66,144.63,6.9137]
[1746449987245,35.95092619,144.67,144.64,6.9133]
[1746449995649,6.9124,144.66,144.64,6.9133]
[1746449996552,35.95102619,144.67,144.64,6.9133]
[1746449998050,6.9124,144.66,144.64,6.9133]
[1746449998654,11.73102619,144.67,144.64,6.9133]
[1746450000156,6.9126,144.66,144.64,6.9133]
[1746450000658,4.81882619,144.67,144.61,25.18]
[1746450001367,6.9132,144.65,144.63,6.9136]
[1746450001659,4.81882619,144.67,144.61,25.18]
[1746450001958,6.9133,144.65,144.62,6.914]
[1746450002158,6.9133,144.65,144.61,25.18]
[1746450002553,6.9133,144.65,144.62,6.9142]
[1746450004362,6.9133,144.65,144.63,6.9136]
[1746450006865,6.9133,144.65,144.62,6.9141]
[1746450007165,6.9133,144.65,144.62,6.9138]
[1746450008064,4.81882619,144.67,144.61,7.9146]
[1746450008276,4.81882619,144.67,144.61,1.0]
[1746450008566,6.9134,144.64,144.61,1.0]
[1746450008870,4.81882619,144.67,144.62,6.914]
[1746450009070,6.9132,144.65,144.62,6.914]
[1746450010273,6.9132,144.65,144.63,6.9136]
[1746450010469,6.9125,144.66,144.61,1.0]
[1746450010771,6.9125,144.66,144.64,6.9132]
[1746450012476,6.9125,144.66,144.63,6.9135]
[1746450012976,6.9125,144.66,144.61,5.81882619]
[1746450015777,6.9125,144.66,144.63,6.9136]
[1746450015975,4.81882619,144.65,144.61,1.0]
[1746450016167,4.82277461,144.62,144.61,1.0]
[1746450016369,4.82324211,144.62,144.61,1.0]
[1746450016569,4.82324211,144.62,144.57,7.9165]
[1746450016773,4.82324211,144.6,144.57,1.0]
[1746450017779,6.9162,144.58,144.57,1.0]
[1746450018779,11.73944211,144.58,144.57,1.0]
[1746450019178,6.9162,144.58,144.57,1.0]
[1746450019481,6.9159,144.59,144.57,1.0]
[1746450020282,6.9162,144.58,144.57,1.0]
[1746450021884,6.9162,144.58,144.57,2.0]
[1746450022779,6.9159,144.59,144.57,2.0]
[1746450023385,11.73944211,144.58,144.57,2.0]
[1746450023586,4.82324211,144.58,144.53,46.67992]
[1746450023881,6.9181,144.54,144.53,46.67992]
[1746450027288,6.9205,144.49,144.46,24.18]
[1746450027692,24.2,144.52,144.43,24.2]
[1746450028188,6.9203,144.5,144.47,6.9212]
[1746450028384,24.2,144.52,144.43,24.2]
[1746450028789,24.2,144.52,144.43,31.74393449]
[1746450029088,31.1194,144.52,144.49,6.9203]
[1746450029688,24.2,144.52,144.48,6.9208]
[1746450030098,24.2,144.52,144.43,31.74393449]
[1746450030394,24.2,144.52,144.49,6.9201]
[1746450031192,6.9196,144.51,144.49,6.9201]
[1746450032094,31.1192,144.52,144.49,6.9201]
[1746450032289,24.2,144.52,144.43,31.74393449]
[1746450032490,24.2,144.55,144.46,1.9711]
[1746450032684,6.9183,144.54,144.47,26.1969]
[1746450032991,24.2,144.55,144.47,28.321]
[1746450033491,31.1179,144.55,144.52,6.9186]
[1746450033687,24.2,144.58,144.51,24.2]
[1746450033994,31.1166,144.58,144.51,24.2]
[1746450034192,24.2,144.58,144.51,24.2]
[1746450034496,6.9159,144.59,144.56,6.9169]
[1746450034694,35.99703449,144.61,144.52,1.9711]
[1746450034995,8.19836,144.6,144.57,6.9166]
[1746450035995,1.28286,144.6,144.53,4.1978]
[1746450036493,6.9165,144.58,144.55,6.9174]
[1746450036894,1.28286,144.6,144.53,4.1978]
[1746450037296,6.9159,144.59,144.56,6.9169]
[1746450037594,1.28286,144.6,144.56,6.9169]
[1746450037895,6.916,144.59,144.56,6.9169]
[1746450039296,1.28286,144.6,144.53,4.1978]
[1746450039497,1.28286,144.6,144.54,24.2]
[1746450040397,1.28286,144.6,144.58,6.9157]
[1746450040698,1.28286,144.6,144.59,6.9157]
[1746450042296,1.28286,144.6,144.58,6.916]
[1746450042503,1.28286,144.6,144.55,7.54393449]
[1746450042992,1.28286,144.6,144.54,24.2]
[1746450043502,6.9159,144.59,144.54,24.2]
[1746450045094,6.9159,144.59,144.56,6.9169]
[1746450045291,8.19836,144.6,144.54,24.2]
[1746450045597,8.19836,144.6,144.57,6.9164]
[1746450045995,8.19836,144.6,144.54,24.2]
[1746450047098,1.28286,144.6,144.54,24.2]
[1746450047697,1.28286,144.6,144.59,6.9157]
[1746450048901,1.28286,144.6,144.54,24.2]
[1746450049504,8.19836,144.6,144.57,6.9164]
[1746450052211,1.28286,144.6,144.54,24.2]
[1746450053095,8.19846,144.6,144.57,6.9162]
[1746450053406,8.19846,144.6,144.54,24.2]
[1746450054805,8.19846,144.6,144.58,6.9161]
[1746450058310,6.916,144.59,144.54,24.2]
[1746450059211,6.916,144.59,144.56,6.9168]
[1746450059601,8.19836,144.6,144.54,24.2]
[1746450059804,1.28286,144.6,144.58,6.9158]
[1746450060006,1.28286,144.6,144.54,24.2]
[1746450060710,8.19816,144.6,144.54,24.2]
[1746450062803,8.19816,144.6,144.57,6.9165]
[1746450063212,8.19816,144.6,144.58,6.9162]
[1746450063511,8.19816,144.6,144.54,24.2]
[1746450063831,8.19816,144.6,144.57,6.9164]
[1746450064018,6.9157,144.59,144.57,6.9164]
[1746450064419,1.28286,144.6,144.57,6.9164]
[1746450064720,6.9157,144.59,144.57,6.9164]
[1746450065413,8.19836,144.6,144.57,6.9164]
[1746450066220,6.9158,144.59,144.57,6.9164]
[1746450066417,1.28286,144.6,144.57,6.9164]
[1746450067919,8.19836,144.6,144.58,6.9162]
[1746450068220,1.28286,144.6,144.58,6.9162]
[1746450068416,1.28286,144.6,144.54,24.2]
[1746450068824,1.28286,144.6,144.59,6.9157]
[1746450079228,1.28286,144.6,144.58,31.096]
[1746450079828,1.28286,144.6,144.59,6.9157]
[1746450081630,6.9136,144.64,144.61,6.9144]
[1746450081830,6.9128,144.66,144.58,24.18]
[1746450082330,6.9128,144.66,144.63,6.9135]
[1746450082529,31.0921,144.67,144.59,13.80144275]
[1746450082730,6.9121,144.67,144.6,2.0881]
[1746450082919,6.9121,144.67,144.64,6.9133]
[1746450083124,24.18,144.7,144.62,24.18]
[1746450083419,24.18,144.7,144.62,31.0939]
[1746450083624,24.18,144.7,144.62,24.18]
[1746450083825,6.9135,144.64,144.62,24.18]
[1746450084232,6.9135,144.64,144.61,6.9147]
[1746450084531,6.9131,144.65,144.6,2.0881]
[1746450084731,6.9131,144.65,144.61,1.0]
[1746450085430,6.9131,144.65,144.61,7.9143]
[1746450085629,6.9131,144.65,144.61,1.0]
[1746450085929,6.9133,144.64,144.61,1.0]
[1746450086130,6.9133,144.64,144.61,7.9145]
[1746450086633,6.9131,144.65,144.62,6.9143]
[1746450088632,6.9134,144.64,144.62,6.9143]
[1746450088832,6.9134,144.64,144.61,7.9145]
[1746450089028,11.67744275,144.69,144.61,7.9145]
[1746450089233,6.914,144.63,144.61,1.0]